[Event "Serbian League 2024"]
[Site "Bajina Basta"]
[Date "2024.09.28"]
[Round "1.29"]
[White "Ivanovic, Dragutin"]
[Black "Gagic, Milan A"]
[Result "1-0"]
[ECO "A12"]
[WhiteElo "2308"]
[BlackElo "2284"]
[Annotator "RC"]
[PlyCount "155"]
[EventDate "2024.09.26"]
[EventType "team-tourn"]
[EventCountry "SRB"]
[SourceTitle "playchess.com"]
[Source "ChessBase"]
[SourceQuality "1"]
[TimeControl "40/5400+30:1800+30"]

1. Nf3 {[%emt 1:31:00]} Nf6 {[%emt 1:31:00]} 2. b3 {[%emt 0:00:30]} d5 {[%emt 0:00:30]} 3. Bb2 {[%emt 0:00:30]} Bf5 {[%emt 0:00:30]} 4. c4 {[%emt 0:00:30]} e6 {[%emt 0:00:30]} 5. g3 {[%emt 0:00:30]} Be7 {[%emt 0:00:30]} 6. Bg2 {[%emt 0:00:30]} O-O {[%emt 0:00:30]} 7. O-O {[%emt 0:00:30]} h6 {[%emt 0:00:30]} 8. d3 {[%emt 0:00:30]} Nbd7 {[%emt 0:00:30]} 9. Nbd2 {[%emt 0:00:30]} a5 {[%emt 0:00:30]} 10. a3 {[%emt 0:00:30]} Bh7 {[%emt 0:00:30]} 11. Rc1 {[%emt 0:00:30]} c6 {[%emt 0:00:30]} 12. cxd5 {[%emt 0:00:30]} exd5 {[%emt 0:00:30]} 13. Bh3 {[%emt 0:00:30]} Re8 {[%emt 0:00:30]} 14. Nd4 {[%emt 0:00:30]} Qb6 {[%emt 0:00:30]} 15. Nf5 {[%emt 0:00:30]} Bxf5 {[%emt 0:00:30]} 16. Bxf5 {[%emt 0:00:30]} Bd6 {[%emt 0:00:30]} 17. d4 {[%emt 0:00:30]} Qd8 {[%emt 0:00:30]} 18. Re1 {[%emt 0:00:30]} Qe7 {[%emt 0:00:30]} 19. Ra1 {[%emt 0:00:30]} Ne4 {[%emt 0:00:30]} 20. Nxe4 {[%emt 0:00:30]} dxe4 {[%emt 0:00:30]} 21. d5 {[%emt 0:00:30]} c5 {[%emt 0:00:30]} 22. e3 {[%emt 0:00:30]} Rad8 {[%emt 0:00:30]} 23. Qg4 {[%emt 0:00:30]} Nf6 {[%emt 0:00:30]} 24. Bxf6 {[%emt 0:00:30]} Qxf6 {[%emt 0:00:30]} 25. Bxe4 {[%emt 0:00:30]} h5 {[%emt 0:00:30]} 26. Qf3 {[%emt 0:00:30]} Qe5 {[%emt 0:00:30]} 27. Bd3 {[%emt 0:00:30]} Bb8 {[%emt 0:00:30]} 28. Bc4 {[%emt 0:00:30]} Rd6 {[%emt 0:00:30]} 29. e4 {[%emt 0:00:30]} h4 {[%emt 0:00:30]} 30. Qe3 {[%emt 0:00:30]} hxg3 {[%emt 0:00:30]} 31. hxg3 {[%emt 0:00:30]} Rh6 {[%emt 0:00:30]} 32. Bf1 {[%emt 0:00:30]} Qh5 {[%emt 0:00:30]} 33. Bg2 {[%emt 0:00:30]} Qh2+ {[%emt 0:00:30]} 34. Kf1 {[%emt 0:00:30]} Be5 {[%emt 0:00:30]} 35. Rad1 {[%emt 0:00:30]} Rf6 {[%emt 0:00:30]} 36. Bf3 {[%emt 0:00:30]} Bd4 {[%emt 0:00:30]} 37. Rxd4 {[%emt 0:00:30]} cxd4 {[%emt 0:00:30]} 38. Qd3 {[%emt 0:00:30]} Qh3+ {[%emt 0:00:30]} 39. Bg2 {[%emt 0:00:30]} Qh5 {[%emt 0:00:30]} 40. Qxd4 {[%emt 0:00:30]} Rd6 {[%emt 0:00:30]} 41. e5 {[%emt 0:30:30]} Rdd8 {[%emt 0:30:30]} 42. d6 {[%emt 0:00:30]} Qf5 {[%emt 0:00:30]} 43. Bxb7 {[%emt 0:00:30]} f6 {[%emt 0:00:30]} 44. Bd5+ {[%emt 0:00:30]} Kf8 {[%emt 0:00:30]} 45. e6 {[%emt 0:00:30]} Rxd6 {[%emt 0:00:30]} 46. Qa7 {[%emt 0:00:30]} Rdxe6 {[%emt 0:00:30]} 47. Bxe6 {[%emt 0:00:30]} Rxe6 {[%emt 0:00:30]} 48. Rxe6 {[%emt 0:00:30]} Qh3+ {[%emt 0:00:30]} 49. Kg1 {[%emt 0:00:30]} Qxe6 {[%emt 0:00:30]} 50. Qxa5 {[%emt 0:00:30]} g5 {[%emt 0:00:30]} 51. Qc3 {[%emt 0:00:30]} Kg7 {[%emt 0:00:30]} 52. a4 {[%emt 0:00:30]} Qd5 {[%emt 0:00:30]} 53. Qc4 {[%emt 0:00:30]} Qd1+ {[%emt 0:00:30]} 54. Kg2 {[%emt 0:00:30]} g4 {[%emt 0:00:30]} 55. Qc7+ {[%emt 0:00:30]} Kg6 {[%emt 0:00:30]} 56. Qb7 {[%emt 0:00:30]} f5 {[%emt 0:00:30]} 57. a5 {[%emt 0:00:30]} f4 {[%emt 0:00:30]} 58. gxf4 {[%emt 0:00:30]} Qd3 {[%emt 0:00:30]} 59. a6 {[%emt 0:00:30]} g3 {[%emt 0:00:30]} 60. Qf3 {[%emt 0:00:30]} Qxa6 {[%emt 0:00:30]} 61. fxg3 {[%emt 0:00:30]} Qa2+ {[%emt 0:00:30]} 62. Kh3 {[%emt 0:00:30]} Qb1 {[%emt 0:00:30]} 63. g4 {[%emt 0:00:30]} Qc1 {[%emt 0:00:30]} 64. b4 {[%emt 0:00:30]} Qb1 {[%emt 0:00:30]} 65. f5+ {[%emt 0:00:30]} Kg5 {[%emt 0:00:30]} 66. Qe3+ {[%emt 0:00:30]} Kf6 {[%emt 0:00:30]} 67. Qe6+ {[%emt 0:00:30]} Kg5 {[%emt 0:00:30]} 68. Qe3+ {[%emt 0:00:30]} Kf6 {[%emt 0:00:30]} 69. Qd4+ {[%emt 0:00:30]} Kg5 {[%emt 0:00:30]} 70. Qd2+ {[%emt 0:00:30]} Kf6 {[%emt 0:00:30]} 71. Kg3 {[%emt 0:00:30]} Qg1+ {[%emt 0:00:30]} 72. Kf4 {[%emt 0:00:30]} Qf1+ {[%emt 0:00:30]} 73. Ke4 {[%emt 0:00:30]} Qb1+ {[%emt 0:00:30]} 74. Kd5 {[%emt 0:00:30]} Kf7 {[%emt 0:00:30]} 75. Kd6 {[%emt 0:00:30]} Qa1 {[%emt 0:00:30]} 76. Qd5+ {[%emt 0:00:30]} Kf8 {[%emt 0:00:30]} 77. Ke6 {[%emt 0:00:30]} Qe1+ {[%emt 0:00:30]} 78. Qe5 {[%emt 0:00:30]} 1-0

[Event "Serbian League 2024"]
[Site "Bajina Basta"]
[Date "2024.09.28"]
[Round "1.30"]
[White "Pajcin, Lav"]
[Black "Zivanovic, Bojan"]
[Result "1-0"]
[ECO "A77"]
[WhiteElo "2242"]
[BlackElo "2161"]
[Annotator "RC"]
[PlyCount "81"]
[EventDate "2024.09.26"]
[EventType "team-tourn"]
[EventCountry "SRB"]
[SourceTitle "playchess.com"]
[Source "ChessBase"]
[SourceQuality "1"]
[TimeControl "40/5400+30:1800+30"]

1. d4 {[%emt 0:00:11]} Nf6 {[%emt 0:00:32]} 2. c4 {[%emt 0:00:11]} c5 {[%emt 0:00:20]} 3. d5 {[%emt 0:00:11]} e6 {[%emt 0:00:30]} 4. Nc3 {[%emt 0:00:19]} exd5 {[%emt 0:00:18]} 5. cxd5 {[%emt 0:00:12]} d6 {[%emt 0:00:08]} 6. Nf3 {[%emt 0:00:11]} g6 {[%emt 0:01:10]} 7. Nd2 {[%emt 0:00:30]} a6 {[%emt 0:03:39]} 8. a4 {[%emt 0:00:31]} Nbd7 {[%emt 0:01:40]} 9. e4 {[%emt 0:00:34]} Bg7 {[%emt 0:01:55]} 10. Be2 {[%emt 0:00:15]} O-O {[%emt 0:01:13]} 11. O-O {[%emt 0:00:16]} Re8 {[%emt 0:00:51]} 12. Ra3 {[%emt 0:08:28]} Qc7 {[%emt 0:07:35]} 13. Qc2 {[%emt 0:08:19]} Rb8 {[%emt 0:15:42]} 14. a5 {[%emt 0:07:58]} h6 {[%emt 0:30:26]} 15. Rd1 {[%emt 0:04:00]} g5 {[%emt 0:03:42]} 16. Nc4 {[%emt 0:09:40]} b5 {[%emt 0:11:19]} 17. axb6 {[%emt 0:00:08]} Nxb6 {[%emt 0:00:06]} 18. Na5 {[%emt 0:06:54]} Ng4 {[%emt 0:09:10]} 19. Nc6 {[%emt 0:01:24]} Ra8 {[%emt 0:00:17]} 20. f4 {[%emt 0:01:18]} gxf4 {[%emt 0:04:20]} 21. Bxf4 {[%emt 0:00:09]} Bd7 {[%emt 0:02:20]} 22. Qc1 {[%emt 0:10:56]} Bxc6 {[%emt 0:01:52]} 23. Bxg4 {[%emt 0:00:06]} Bd7 {[%emt 0:00:46]} 24. Be2 {[%emt 0:05:55]} h5 {[%emt 0:00:57]} 25. Bh6 {[%emt 0:02:59]} Re5 {[%emt 0:00:11]} 26. Nb5 {[%emt 0:05:20]} axb5 {[%emt 0:00:23]} 27. Rg3 {[%emt 0:00:05]} Bg4 {[%emt 0:01:04]} 28. Bxg4 {[%emt 0:00:06]} h4 {[%emt 0:00:07]} 29. Rh3 {[%emt 0:01:21]} Qe7 {[%emt 0:00:21]} 30. Bf5 {[%emt 0:00:57]} Qf6 {[%emt 0:00:55]} 31. Bg5 {[%emt 0:02:10]} Ra1 {[%emt 0:00:25]} 32. Qxa1 {[%emt 0:00:06]} Qxg5 {[%emt 0:00:04]} 33. Rf3 {[%emt 0:14:23]} Nc4 {[%emt 0:01:04]} 34. Qa8+ {[%emt 0:00:27]} Bf8 {[%emt 0:00:07]} 35. Be6 {[%emt 0:00:16]} Ne3 {[%emt 0:01:11]} 36. Rd2 {[%emt 0:02:24]} Ng4 {[%emt 0:00:34]} 37. Rxf7 {[%emt 0:02:15]} Qe3+ {[%emt 0:01:02]} 38. Rff2+ {[%emt 0:00:10]} Rxe6 {[%emt 0:00:06]} 39. Qxf8+ {[%emt 0:00:00]} Kh7 {[%emt 0:00:06]} 40. Qf7+ {[%emt 0:00:00]} Kh8 {[%emt 0:00:12]} 41. dxe6 {[%emt 0:29:56]} 1-0

[Event "Serbian League 2024"]
[Site "Bajina Basta"]
[Date "2024.09.28"]
[Round "1.31"]
[White "Andreikin, Dmitry"]
[Black "Visakh N R"]
[Result "1/2-1/2"]
[ECO "D35"]
[WhiteElo "2729"]
[BlackElo "2504"]
[Annotator "TA"]
[PlyCount "45"]
[EventDate "2024.09.26"]
[EventType "team-tourn"]
[EventCountry "SRB"]
[SourceTitle "playchess.com"]
[Source "ChessBase"]
[SourceQuality "1"]
[TimeControl "40/5400+30:1800+30"]

{[%evp 14,45,13,0,10,0,8,0,1,13,8,7,10,5,13,0,13,8,9,7,14,8,3,0,15,-12,-16,-23,-20,-20,-16,-34,-21,-39]} 1. d4 {[%emt 0:00:25]} Nf6 {[%emt 0:00:33]} 2. c4 {[%emt 0:00:30]} e6 {[%emt 0:00:30]} 3. Nf3 {[%emt 0:00:00]} d5 {[%emt 0:00:00]} 4. cxd5 {[%emt 0:00:38]} exd5 {[%emt 0:00:14]} 5. Nc3 {[%emt 0:00:30]} c6 {[%emt 0:00:30]} 6. Bf4 {[%emt 0:00:30]} Bd6 {[%emt 0:00:30]} 7. Bxd6 {[%emt 0:00:30]} Qxd6 {[%emt 0:00:30]} 8. e3 {[%emt 0:00:30]} O-O {[%emt 0:00:30]} 9. Bd3 {[%emt 0:00:30]} Bg4 {[%emt 0:00:30]} 10. h3 {[%emt 0:00:30]} Bxf3 {[%emt 0:00:30]} 11. Qxf3 {[%emt 0:00:30]} Re8 {[%emt 0:00:30]} 12. a3 {[%emt 0:00:30]} Nbd7 {[%emt 0:00:30][%cal Bb8d7,Bd7f8,Bf8e6][%mdl 32]} 13. O-O {[%emt 0:00:30]} a5 {[%emt 0:00:30]} 14. Rfc1 {[%emt 0:00:30]} g6 {[%emt 0:00:30]} 15. Qd1 {[%emt 0:00:30]} Kg7 {[%emt 0:00:30]} 16. Rab1 {[%emt 0:00:30]} Re7 {[%emt 0:00:30]} 17. Qb3 {[%emt 0:00:30]} Nf8 {[%emt 0:00:30]} 18. Qc2 {[%emt 0:00:30]} Ne6 {[%emt 0:00:30]} 19. b4 {[%emt 0:00:30]} axb4 {[%emt 0:00:30]} 20. axb4 {[%emt 0:00:30]} b5 {[%emt 0:00:30]} 21. Qb2 {[%emt 0:00:30]} Ra6 {[%emt 0:00:30]} 22. Rc2 {[%emt 0:00:30]} Qb8 {[%emt 0:00:30]} 23. Ra1 {[%emt 0:00:30] Weighted Error Value: White=0.07 (flawless) /Black=0.03 (flawless) .  Inaccurate:     	White=1     	---        OK:         	White=2     	Black=7} 1/2-1/2

[Event "Serbian League 2024"]
[Site "Bajina Basta"]
[Date "2024.09.28"]
[Round "1.32"]
[White "Vignesh N R"]
[Black "Matlakov, Maxim"]
[Result "1/2-1/2"]
[ECO "C78"]
[WhiteElo "2511"]
[BlackElo "2636"]
[Annotator "TA"]
[PlyCount "48"]
[EventDate "2024.09.26"]
[EventType "team-tourn"]
[EventCountry "SRB"]
[SourceTitle "playchess.com"]
[Source "ChessBase"]
[SourceQuality "1"]
[TimeControl "40/5400+30:1800+30"]

{[%evp 14,48,12,18,22,21,8,18,8,12,12,19,25,0,0,0,0,-9,-7,-17,-12,-18,0,0,0,0,0,-3,0,0,0,0,0,0,0,0,0]} 1. e4 {[%emt 1:31:00]} e5 {[%emt 1:31:00]} 2. Nf3 {[%emt 0:00:30]} Nc6 {[%emt 0:00:30]} 3. Bb5 {[%emt 0:00:30][%cal Bf1b5,Bb5a4,Ba4b3,Bb3d5][%mdl 32]} a6 {[%emt 0:00:30]} 4. Ba4 {[%emt 0:00:30]} Nf6 {[%emt 0:00:30]} 5. O-O {[%emt 0:00:30]} b5 {[%emt 0:00:30]} 6. Bb3 {[%emt 0:00:30]} Bb7 {[%emt 0:00:30]} 7. d3 Bc5 {[%emt 0:00:30]} 8. Nc3 O-O {[%emt 0:00:30]} 9. Nd5 Na5 {[%emt 0:00:30]} 10. Bg5 {Nxf6+ would now be deadly.} Bxd5 {[%emt 0:00:30]} 11. Bxd5 c6 {[%emt 0:00:30]} 12. Bb3 h6 13. Bd2 Nxb3 {The position is equal.} 14. axb3 Re8 {[%emt 0:01:30]} 15. g3 d5 {[%emt 0:00:30]} 16. Qe2 a5 {[%emt 0:00:30]} 17. Ra2 Qb6 {[%emt 0:00:30]} 18. Rfa1 {[%cal Ob3b4]} b4 {[%emt 0:00:30]} 19. h3 Qb5 {[%emt 0:00:30] ...dxe4 is the strong threat.} 20. Qe1 Bf8 {[%emt 0:00:30]} 21. Kg2 Nd7 {[%emt 0:00:30]} 22. Be3 Nf6 {[%emt 0:00:30]} 23. Bd2 Nd7 24. Be3 Nf6 {Not much happened in this game.   Weighted Error Value: White=0.03 (flawless) /Black=0.02 (flawless) .  OK:         	White=8     	Black=8      Best:        	---       	Black=1} 1/2-1/2

[Event "Serbian League 2024"]
[Site "Bajina Basta"]
[Date "2024.09.28"]
[Round "1.33"]
[White "Stojanovic, Mihajlo"]
[Black "Milanovic, Danilo"]
[Result "1/2-1/2"]
[ECO "B38"]
[WhiteElo "2424"]
[BlackElo "2442"]
[Annotator "TA"]
[PlyCount "84"]
[EventDate "2024.09.26"]
[EventType "team-tourn"]
[EventCountry "SRB"]
[SourceTitle "playchess.com"]
[Source "ChessBase"]
[SourceQuality "1"]
[TimeControl "40/5400+30:1800+30"]

{[%evp 21,84,37,33,0,16,-22,-10,-12,-6,-12,0,-110,-100,-116,-119,-104,-110,-111,-71,-80,-58,-83,-83,-89,-89,-95,-109,-104,-108,-110,-110,-109,-85,-93,-89,-95,-101,-93,-93,-93,-90,-102,-91,-114,-86,-116,-77,-79,-78,-114,-78,-89,-67,-67,-67,-67,-67,-78,-78,-78,-78,-78,-60,-60,-60]} 1. Nf3 {[%emt 1:31:00]} Nf6 {[%emt 1:31:00]} 2. c4 {[%emt 0:00:30]} c5 {[%emt 0:00:30]} 3. Nc3 {[%emt 0:00:30]} Nc6 {[%emt 0:00:30]} 4. d4 {[%emt 0:00:30]} cxd4 {[%emt 0:00:30]} 5. Nxd4 {[%emt 0:00:30]} g6 {[%emt 0:00:30]} 6. e4 {[%emt 0:00:30]} d6 {[%emt 0:00:30]} 7. f3 {[%emt 0:00:30]} Bg7 {[%emt 0:00:30]} 8. Be3 {[%emt 0:00:30]} O-O {[%emt 0:00:30]} 9. Qd2 {[%emt 0:00:30]} Nxd4 {[%emt 0:00:30]} 10. Bxd4 {[%emt 0:00:30]} Be6 {[%emt 0:00:30]} 11. Be2 {[%emt 0:00:30]} Qa5 {[%emt 0:00:30]} 12. Rd1 {[%emt 0:00:30]} Rfc8 {[%emt 0:00:30]} 13. Nd5 {[%emt 0:00:30]} Qxd2+ {[%emt 0:00:30]} 14. Rxd2 {[%emt 0:00:30] The position is equal.} Bxd5 {[%emt 0:00:30]} 15. exd5 {[%emt 0:00:30]} Nd7 {[%emt 0:00:30]} 16. Be3 {[%emt 0:00:30] [#]} (16. Kf2 $11 {keeps the balance.}) 16... Nb6 $1 $17 {[%emt 0:00:30]} 17. Bxb6 {[%emt 0:00:30]} axb6 {[%emt 0:00:30]} 18. a3 {[%emt 0:00:30] [#] White is weak on the dark squares} b5 $1 {[%emt 0:00:30][%mdl 512]} 19. cxb5 {[%emt 0:00:30]} Rc1+ {[%emt 0:00:30]} 20. Bd1 {[%emt 0:00:30]} Rb1 {[%emt 0:00:30]} 21. Ke2 {[%emt 0:00:30]} Bxb2 {[%emt 0:00:30]} ({Reject} 21... Rxb2 $6 22. Rxb2 Bxb2 23. a4 $11) 22. a4 {[%emt 0:00:30]} Be5 {[%emt 0:00:30]} 23. g3 {[%emt 0:00:30]} Rxa4 {[%emt 0:00:30]} 24. Bxa4 {[%emt 0:00:30]} Rxh1 {[%emt 0:00:30][%mdl 4096] Endgame. KRB-KRB} 25. Kd3 {[%emt 0:00:30]} Ra1 {[%emt 0:00:30]} 26. Bb3 {[%emt 0:00:30]} Rb1 {[%emt 0:00:30]} 27. Bc4 {[%emt 0:00:30]} g5 {[%emt 0:00:30]} 28. Ke4 {[%emt 0:00:30]} Kg7 {[%emt 0:00:30]} 29. Kf5 {[%emt 0:00:30]} Rc1 {[%emt 0:00:30]} 30. Bd3 {[%emt 0:00:30]} Rc5 {[%emt 0:00:30]} 31. Be2 {[%emt 0:00:30]} h6 {[%emt 0:00:30][%cal Oe7e6]} 32. Kg4 {[%emt 0:00:30]} Rc3 {[%emt 0:00:30]} 33. h4 {[%emt 0:00:30]} Bf6 {[%emt 0:00:30]} 34. hxg5 {[%emt 0:00:30]} hxg5 {[%emt 0:00:30]} 35. Kf5 {[%emt 0:00:30]} Rc5 {[%emt 0:00:30]} 36. Kg4 {[%emt 0:00:30]} Rc1 {[%emt 0:00:30]} 37. f4 {[%emt 0:00:30]} gxf4 {[%emt 0:00:30]} 38. gxf4 {[%emt 0:00:30]} Bc3 {[%emt 0:00:30]} 39. Rd1 {[%emt 0:00:30]} Rc2 {[%emt 0:00:30]} 40. Bd3 {[%emt 0:00:30]} Rf2 {[%emt 0:00:30]} 41. Rc1 {[%emt 0:30:30]} Ba5 {[%emt 0:30:30]} (41... Rxf4+ $5 42. Kxf4 Bd2+ 43. Ke4 Bxc1 $11) 42. Rc2 {[%emt 0:00:30]} Rxc2 {[%emt 0:00:30] Weighted Error Value: White=0.17 (very precise) /Black=0.08 (flawless) .  Mistake:       	White=1     	---        Inaccurate:     	White=3     	Black=3      OK:         	White=11    	Black=17     Best:        	White=1     	---        Strong:       	---       	Black=1      Brilliant:      	---       	Black=1} 1/2-1/2

[Event "Serbian League 2024"]
[Site "Bajina Basta"]
[Date "2024.09.28"]
[Round "1.34"]
[White "Spasic, Petar"]
[Black "Nestorovic, Nikola"]
[Result "0-1"]
[ECO "D02"]
[WhiteElo "2304"]
[BlackElo "2458"]
[Annotator "RC"]
[PlyCount "154"]
[EventDate "2024.09.26"]
[EventType "team-tourn"]
[EventCountry "SRB"]
[SourceTitle "playchess.com"]
[Source "ChessBase"]
[SourceQuality "1"]
[TimeControl "40/5400+30:1800+30"]

1. Nf3 {[%emt 0:00:02]} d5 {[%emt 0:07:48]} 2. g3 {[%emt 0:00:30]} Nc6 {[%emt 0:00:30]} 3. d4 {[%emt 0:00:30]} Bf5 {[%emt 0:00:30]} 4. a3 {[%emt 0:00:30]} h6 {[%emt 0:00:30]} 5. Bg2 {[%emt 0:00:30]} e6 {[%emt 0:00:30]} 6. Nbd2 {[%emt 0:00:30]} Nf6 {[%emt 0:00:30]} 7. b3 {[%emt 0:00:30]} Be7 {[%emt 0:00:30]} 8. Bb2 {[%emt 0:00:30]} O-O {[%emt 0:00:30]} 9. c4 {[%emt 0:00:30]} Ne4 {[%emt 0:00:30]} 10. Rc1 {[%emt 0:00:30]} a5 {[%emt 0:00:30]} 11. O-O {[%emt 0:00:30]} Nb8 {[%emt 0:00:30]} 12. Nxe4 {[%emt 0:00:30]} Bxe4 {[%emt 0:00:30]} 13. Nd2 {[%emt 0:00:30]} Bxg2 {[%emt 0:00:30]} 14. Kxg2 {[%emt 0:00:30]} f5 {[%emt 0:00:30]} 15. Nf3 {[%emt 0:00:30]} Nd7 {[%emt 0:00:30]} 16. Qd3 {[%emt 0:00:30]} c6 {[%emt 0:00:30]} 17. a4 {[%emt 0:00:30]} Bd6 {[%emt 0:00:30]} 18. Bc3 {[%emt 0:00:30]} Qe7 {[%emt 0:00:30]} 19. Rfd1 {[%emt 0:00:30]} f4 {[%emt 0:00:30]} 20. Nh4 {[%emt 0:00:30]} Rf6 {[%emt 0:00:30]} 21. Ng6 {[%emt 0:00:30]} Qf7 {[%emt 0:00:30]} 22. Ne5 {[%emt 0:00:30]} Bxe5 {[%emt 0:00:30]} 23. dxe5 {[%emt 0:00:30]} Rf5 {[%emt 0:00:30]} 24. g4 {[%emt 0:00:30]} Nxe5 {[%emt 0:00:30]} 25. Bxe5 {[%emt 0:00:30]} Rxe5 {[%emt 0:00:30]} 26. Qf3 {[%emt 0:00:30]} Re4 {[%emt 0:00:30]} 27. Rd2 {[%emt 0:00:30]} Qf6 {[%emt 0:00:30]} 28. Rc3 {[%emt 0:00:30]} Qe5 {[%emt 0:00:30]} 29. h4 {[%emt 0:00:30]} Rd4 {[%emt 0:00:30]} 30. Rcd3 {[%emt 0:00:30]} Re4 {[%emt 0:00:30]} 31. Rc3 {[%emt 0:00:30]} Ra6 {[%emt 0:00:30]} 32. Kh3 {[%emt 0:00:30]} Rb6 {[%emt 0:00:30]} 33. h5 {[%emt 0:00:30]} Qf6 {[%emt 0:00:30]} 34. Qd3 {[%emt 0:00:30]} Ra6 {[%emt 0:00:30]} 35. Qf3 {[%emt 0:00:30]} Ra8 {[%emt 0:00:30]} 36. Rcc2 {[%emt 0:00:30]} Rf8 {[%emt 0:00:30]} 37. Rc3 {[%emt 0:00:30]} g6 {[%emt 0:00:30]} 38. hxg6 {[%emt 0:00:30]} Qxg6 {[%emt 0:00:30]} 39. Rd1 {[%emt 0:00:30]} Rf7 {[%emt 0:00:30]} 40. Rg1 {[%emt 0:00:30]} Rg7 {[%emt 0:00:30]} 41. Rg2 {[%emt 0:30:30]} Qf6 {[%emt 0:30:30]} 42. Rc2 {[%emt 0:00:30]} Re5 {[%emt 0:00:30]} 43. e3 {[%emt 0:00:30]} Re4 {[%emt 0:00:30]} 44. cxd5 {[%emt 0:00:30]} exd5 {[%emt 0:00:30]} 45. Rc4 {[%emt 0:00:30]} Rge7 {[%emt 0:00:30]} 46. Rxe4 {[%emt 0:00:30]} Rxe4 {[%emt 0:00:30]} 47. g5 {[%emt 0:00:30]} hxg5 {[%emt 0:00:30]} 48. Qh5 {[%emt 0:00:30]} Qf5+ {[%emt 0:00:30]} 49. Kh2 {[%emt 0:00:30]} Qh7 {[%emt 0:00:30]} 50. Rxg5+ {[%emt 0:00:30]} Kh8 {[%emt 0:00:30]} 51. exf4 {[%emt 0:00:30]} Qxh5+ {[%emt 0:00:30]} 52. Rxh5+ {[%emt 0:00:30]} Kg7 {[%emt 0:00:30]} 53. Kg3 {[%emt 0:00:30]} Rb4 {[%emt 0:00:30]} 54. Kg4 {[%emt 0:00:30]} Rxb3 {[%emt 0:00:30]} 55. Kf5 {[%emt 0:00:30]} Rb4 {[%emt 0:00:30]} 56. Rg5+ {[%emt 0:00:30]} Kf8 {[%emt 0:00:30]} 57. f3 {[%emt 0:00:30]} Rxa4 {[%emt 0:00:30]} 58. Ke5 {[%emt 0:00:30]} Ra3 {[%emt 0:00:30]} 59. f5 {[%emt 0:00:30]} Rxf3 {[%emt 0:00:30]} 60. Kf6 {[%emt 0:00:30]} Rh3 {[%emt 0:00:30]} 61. Ke6 {[%emt 0:00:30]} Re3+ {[%emt 0:00:30]} 62. Kf6 {[%emt 0:00:30]} Rh3 {[%emt 0:00:30]} 63. Ke6 {[%emt 0:00:30]} a4 {[%emt 0:00:30]} 64. f6 {[%emt 0:00:30]} a3 {[%emt 0:00:30]} 65. Rg2 {[%emt 0:00:30]} b5 {[%emt 0:00:30]} 66. Rc2 {[%emt 0:00:30]} Re3+ {[%emt 0:00:30]} 67. Kf5 {[%emt 0:00:30]} b4 {[%emt 0:00:30]} 68. Rh2 {[%emt 0:00:30]} b3 {[%emt 0:00:30]} 69. Rh8+ {[%emt 0:00:30]} Kf7 {[%emt 0:00:30]} 70. Rh7+ {[%emt 0:00:30]} Kg8 {[%emt 0:00:30]} 71. Rg7+ {[%emt 0:00:30]} Kf8 {[%emt 0:00:30]} 72. Kg6 {[%emt 0:00:30]} b2 {[%emt 0:00:30]} 73. Rf7+ {[%emt 0:00:30]} Ke8 {[%emt 0:00:30]} 74. Rb7 {[%emt 0:00:30]} Rg3+ {[%emt 0:00:30]} 75. Kf5 {[%emt 0:00:30]} a2 {[%emt 0:00:30]} 76. f7+ {[%emt 0:00:30]} Kf8 {[%emt 0:00:30]} 77. Kf6 {[%emt 0:00:30]} Rg6+ {[%emt 0:00:30]} 0-1

[Event "Serbian League 2024"]
[Site "Bajina Basta"]
[Date "2024.09.28"]
[Round "1.35"]
[White "Todorovic, Goran M"]
[Black "Jovanovic, Dusan D"]
[Result "1/2-1/2"]
[ECO "B43"]
[WhiteElo "2289"]
[BlackElo "2372"]
[Annotator "RC"]
[PlyCount "93"]
[EventDate "2024.09.26"]
[EventType "team-tourn"]
[EventCountry "SRB"]
[SourceTitle "playchess.com"]
[Source "ChessBase"]
[SourceQuality "1"]
[TimeControl "40/5400+30:1800+30"]

1. e4 c5 2. Nf3 e6 3. d4 cxd4 4. Nxd4 a6 5. Nc3 b5 6. Bd3 Bb7 7. O-O Nc6 8. Nxc6 Bxc6 9. Qe2 Bc5 10. Be3 Qb6 11. a4 Bxe3 12. axb5 Bxf2+ 13. Rxf2 axb5 14. Rxa8+ Bxa8 15. Qg4 Kf8 16. Qf4 f6 17. Nxb5 e5 18. Qd2 d6 19. Kh1 Ne7 20. Bc4 d5 21. exd5 Bxd5 22. Bxd5 Nxd5 23. c4 Ke7 24. Rf3 Nc7 25. Qb4+ Ke6 26. Qb3 Ke7 27. Qa3+ Ke6 28. Qb3 Ke7 29. Nxc7 Qxc7 30. Rg3 g6 31. Rh3 h5 32. Rd3 Rc8 33. Rc3 Qc5 34. h3 Rc7 35. Qc2 Ra7 36. Qxg6 Ra1+ 37. Kh2 Qg1+ 38. Kg3 Qe1+ 39. Kf3 Qf1+ 40. Ke4 Qf4+ 41. Kd3 Qf1+ 42. Ke4 Qe2+ 43. Kd5 Rd1+ 44. Kc6 Rd6+ 45. Kc7 Rd7+ 46. Kc6 Rd6+ 47. Kc7 1/2-1/2

[Event "Serbian League 2024"]
[Site "Bajina Basta"]
[Date "2024.09.28"]
[Round "1.36"]
[White "Pavlovic, Goran"]
[Black "Arsovic, Goran"]
[Result "1/2-1/2"]
[ECO "E61"]
[WhiteElo "2337"]
[BlackElo "2356"]
[Annotator "RC"]
[PlyCount "66"]
[EventDate "2024.09.26"]
[EventType "team-tourn"]
[EventCountry "SRB"]
[SourceTitle "playchess.com"]
[Source "ChessBase"]
[SourceQuality "1"]
[TimeControl "40/5400+30:1800+30"]

1. d4 Nf6 2. c4 g6 3. Nc3 Bg7 4. Nf3 d6 5. Bg5 h6 6. Bh4 g5 7. Bg3 Nh5 8. e3 c5 9. d5 Nxg3 10. hxg3 Bxc3+ 11. bxc3 Kd7 12. Bd3 Kc7 13. Nd2 Qg8 14. g4 Nd7 15. f3 Ne5 16. Be4 h5 17. gxh5 f5 18. Bc2 Qf7 19. Qe2 Rxh5 20. Rxh5 Qxh5 21. f4 Ng4 22. O-O-O Bd7 23. Nf3 Qh8 24. Kd2 gxf4 25. exf4 Nf6 26. Ng5 Re8 27. g3 b5 28. cxb5 Nxd5 29. Qd3 Qh2+ 30. Kc1 Nf6 31. Rd2 Qg1+ 32. Rd1 Qg2 33. Rd2 Qg1+ 1/2-1/2